{"text_format":"1","workbook":"xlsx","n_sheets":3,"sheets":["водителю","расписание","адреса"],"not_rendered":{"charts":0,"images":2,"macros":1,"external_links":0,"defined_names":3,"comments":0,"pivot_tables":0},"unopened":[],"bounds":{"document_bytes":16777216,"sheet_cells":100000,"rows_first":2000,"rows_last":500,"rows_between":2000,"halvings":0,"cell_chars":16384,"cell_head_chars":4096},"cells_cut":0,"cells_raw":0,"read":"whole","date_system":"1900"}

{"sheet":"водителю","index":0,"n_rows":24,"n_cols":8,"rows_kept":24,"cut":false,"hidden":false,"merged":[[2,1,2,5],[23,1,29,5],[30,1,31,5]]}
[null,null,null,null,null,null,null,{"$f":"\"водителю!\"","v":"водителю!"}]
[null,"сегодня",{"$f":"E2","v":"2013-02-17"},null,{"$f":"TODAY()","v":"2013-02-17"}]
[null,{"$f":"B2","v":"сегодня"}]
[null,"менеджер","фирма","ранг","адрес","примечания"]
[null,{"$f":"расписание!G4","v":"Борисов Б.Б."},{"$f":"расписание!H4","v":0},null,{"$f":"расписание!I4","v":""},{"$f":"расписание!J4","v":0}]
[null,{"$f":"расписание!G5","v":0},{"$f":"расписание!H5","v":0},null,{"$f":"расписание!I5","v":""},{"$f":"расписание!J5","v":0}]
[null,{"$f":"расписание!G6","v":0},{"$f":"расписание!H6","v":0},null,{"$f":"расписание!I6","v":""},{"$f":"расписание!J6","v":0}]
[null,{"$f":"расписание!G7","v":"Андреев А.А."},{"$f":"расписание!H7","v":0},null,{"$f":"расписание!I7","v":""},{"$f":"расписание!J7","v":0}]
[null,{"$f":"расписание!G8","v":"Борисов Б.Б."},{"$f":"расписание!H8","v":0},null,{"$f":"расписание!I8","v":""},{"$f":"расписание!J8","v":0}]
[null,{"$f":"расписание!G9","v":0},{"$f":"расписание!H9","v":0},null,{"$f":"расписание!I9","v":""},{"$f":"расписание!J9","v":0}]
[null,{"$f":"расписание!G10","v":"Борисов Б.Б."},{"$f":"расписание!H10","v":0},null,{"$f":"расписание!I10","v":""},{"$f":"расписание!J10","v":0}]
[null,{"$f":"расписание!G11","v":"Васечкин В.В."},{"$f":"расписание!H11","v":0},null,{"$f":"расписание!I11","v":""},{"$f":"расписание!J11","v":0}]
[null,{"$f":"расписание!G12","v":"Дмитрюк Д.Д."},{"$f":"расписание!H12","v":0},null,{"$f":"расписание!I12","v":""},{"$f":"расписание!J12","v":0}]
[null,{"$f":"расписание!G13","v":"Дмитрюк Д.Д."},{"$f":"расписание!H13","v":0},null,{"$f":"расписание!I13","v":""},{"$f":"расписание!J13","v":0}]
[null,{"$f":"расписание!G14","v":0},{"$f":"расписание!H14","v":0},null,{"$f":"расписание!I14","v":""},{"$f":"расписание!J14","v":0}]
[null,{"$f":"расписание!G15","v":0},{"$f":"расписание!H15","v":0},null,{"$f":"расписание!I15","v":""},{"$f":"расписание!J15","v":0}]
[null,{"$f":"расписание!G16","v":0},{"$f":"расписание!H16","v":0},null,{"$f":"расписание!I16","v":""},{"$f":"расписание!J16","v":0}]
[null,{"$f":"расписание!G17","v":0},{"$f":"расписание!H17","v":0},null,{"$f":"расписание!I17","v":""},{"$f":"расписание!J17","v":0}]
[null,{"$f":"расписание!G18","v":0},{"$f":"расписание!H18","v":0},null,{"$f":"расписание!I18","v":""},{"$f":"расписание!J18","v":0}]
[null,{"$f":"расписание!G19","v":0},{"$f":"расписание!H19","v":0},null,{"$f":"расписание!I19","v":""},{"$f":"расписание!J19","v":0}]
[null,{"$f":"расписание!G20","v":0},{"$f":"расписание!H20","v":0},null,{"$f":"расписание!I20","v":""},{"$f":"расписание!J20","v":0}]
[]
[]
[null,"это форма для водителя\nее можно распечатать и взять с собой\nВ помощь водителю можно сделать кнопку сортировки, запускающе макрос сортировки списка по рангу\nРанг проставляет сам водитель - просто номера, куда он поедет сначала, потом и т.д.\nот 1 и т.д.\nНажимает кнопку сортировки и получает последовательный для поездки список адресов\n"]

{"sheet":"расписание","index":1,"n_rows":20,"n_cols":22,"rows_kept":20,"cut":false,"hidden":false,"merged":[[0,2,0,5],[1,2,1,5],[0,6,0,9],[1,6,1,9],[0,18,0,21],[1,18,1,21],[0,14,0,17],[1,14,1,17],[0,10,0,13],[1,10,1,13]]}
[".",null,{"$f":"G1+VLOOKUP(WEEKDAY(G1,2),{0,-3;2,-1;7,-2},2)","v":"2013-02-15"},null,null,null,"2013-02-17",null,null,null,{"$f":"G1+VLOOKUP(WEEKDAY(G1,2),{0,1;5,3;6,2;7,1},2)","v":"2013-02-18"},null,null,null,{"$f":"K1+VLOOKUP(WEEKDAY(K1,2),{0,1;5,3;6,2;7,1},2)","v":"2013-02-19"},null,null,null,{"$f":"O1+VLOOKUP(WEEKDAY(O1,2),{0,1;5,3;6,2;7,1},2)","v":"2013-02-20"}]
[null,null,{"$f":"C1","v":"2013-02-15"},null,null,null,{"$f":"G1","v":"2013-02-17"},null,null,null,{"$f":"K1","v":"2013-02-18"},null,null,null,{"$f":"O1","v":"2013-02-19"},null,null,null,{"$f":"S1","v":"2013-02-20"}]
[null,null,"менеджер","фирма","адрес","примечания","менеджер","фирма","адрес","примечания","менеджер","фирма","адрес","примечания","менеджер","фирма","адрес","примечания","менеджер","фирма","адрес","примечания"]
[null,null,"Васечкин В.В.",null,{"$f":"IF(ISNA(VLOOKUP(D4,адреса!$E$3:$H$28,3,0)),\"\",VLOOKUP(D4,адреса!$E$3:$H$28,3,0))","v":""},null,"Борисов Б.Б.",null,{"$f":"IF(ISNA(VLOOKUP(H4,адреса!$E$3:$H$28,3,0)),\"\",VLOOKUP(H4,адреса!$E$3:$H$28,3,0))","v":""},null,"Васечкин В.В.",null,{"$f":"IF(ISNA(VLOOKUP(L4,адреса!$E$3:$H$28,3,0)),\"\",VLOOKUP(L4,адреса!$E$3:$H$28,3,0))","v":""},null,"Гришин Г.Г.",null,{"$f":"IF(ISNA(VLOOKUP(P4,адреса!$E$3:$H$28,3,0)),\"\",VLOOKUP(P4,адреса!$E$3:$H$28,3,0))","v":""},null,null,null,{"$f":"IF(ISNA(VLOOKUP(T4,адреса!$E$3:$H$28,3,0)),\"\",VLOOKUP(T4,адреса!$E$3:$H$28,3,0))","v":""}]
[null,null,"Гришин Г.Г.","Груши",{"$f":"IF(ISNA(VLOOKUP(D5,адреса!$E$3:$H$28,3,0)),\"\",VLOOKUP(D5,адреса!$E$3:$H$28,3,0))","v":"Савиных № 17"},null,null,null,{"$f":"IF(ISNA(VLOOKUP(H5,адреса!$E$3:$H$28,3,0)),\"\",VLOOKUP(H5,адреса!$E$3:$H$28,3,0))","v":""},null,null,null,{"$f":"IF(ISNA(VLOOKUP(L5,адреса!$E$3:$H$28,3,0)),\"\",VLOOKUP(L5,адреса!$E$3:$H$28,3,0))","v":""},null,null,null,{"$f":"IF(ISNA(VLOOKUP(P5,адреса!$E$3:$H$28,3,0)),\"\",VLOOKUP(P5,адреса!$E$3:$H$28,3,0))","v":""},null,null,null,{"$f":"IF(ISNA(VLOOKUP(T5,адреса!$E$3:$H$28,3,0)),\"\",VLOOKUP(T5,адреса!$E$3:$H$28,3,0))","v":""}]
[null,null,"Дмитрюк Д.Д.","Диски",{"$f":"IF(ISNA(VLOOKUP(D6,адреса!$E$3:$H$28,3,0)),\"\",VLOOKUP(D6,адреса!$E$3:$H$28,3,0))","v":"Академический 2/2 ст.5"},null,null,null,{"$f":"IF(ISNA(VLOOKUP(H6,адреса!$E$3:$H$28,3,0)),\"\",VLOOKUP(H6,адреса!$E$3:$H$28,3,0))","v":""},null,null,null,{"$f":"IF(ISNA(VLOOKUP(L6,адреса!$E$3:$H$28,3,0)),\"\",VLOOKUP(L6,адреса!$E$3:$H$28,3,0))","v":""},null,null,null,{"$f":"IF(ISNA(VLOOKUP(P6,адреса!$E$3:$H$28,3,0)),\"\",VLOOKUP(P6,адреса!$E$3:$H$28,3,0))","v":""},null,null,null,{"$f":"IF(ISNA(VLOOKUP(T6,адреса!$E$3:$H$28,3,0)),\"\",VLOOKUP(T6,адреса!$E$3:$H$28,3,0))","v":""}]
[null,null,null,null,{"$f":"IF(ISNA(VLOOKUP(D7,адреса!$E$3:$H$28,3,0)),\"\",VLOOKUP(D7,адреса!$E$3:$H$28,3,0))","v":""},null,"Андреев А.А.",null,{"$f":"IF(ISNA(VLOOKUP(H7,адреса!$E$3:$H$28,3,0)),\"\",VLOOKUP(H7,адреса!$E$3:$H$28,3,0))","v":""},null,null,null,{"$f":"IF(ISNA(VLOOKUP(L7,адреса!$E$3:$H$28,3,0)),\"\",VLOOKUP(L7,адреса!$E$3:$H$28,3,0))","v":""},null,null,null,{"$f":"IF(ISNA(VLOOKUP(P7,адреса!$E$3:$H$28,3,0)),\"\",VLOOKUP(P7,адреса!$E$3:$H$28,3,0))","v":""},null,null,null,{"$f":"IF(ISNA(VLOOKUP(T7,адреса!$E$3:$H$28,3,0)),\"\",VLOOKUP(T7,адреса!$E$3:$H$28,3,0))","v":""}]
[null,null,"Борисов Б.Б.","Брюки",{"$f":"IF(ISNA(VLOOKUP(D8,адреса!$E$3:$H$28,3,0)),\"\",VLOOKUP(D8,адреса!$E$3:$H$28,3,0))","v":"Бирюлево"},null,"Борисов Б.Б.",null,{"$f":"IF(ISNA(VLOOKUP(H8,адреса!$E$3:$H$28,3,0)),\"\",VLOOKUP(H8,адреса!$E$3:$H$28,3,0))","v":""},null,null,null,{"$f":"IF(ISNA(VLOOKUP(L8,адреса!$E$3:$H$28,3,0)),\"\",VLOOKUP(L8,адреса!$E$3:$H$28,3,0))","v":""},null,null,null,{"$f":"IF(ISNA(VLOOKUP(P8,адреса!$E$3:$H$28,3,0)),\"\",VLOOKUP(P8,адреса!$E$3:$H$28,3,0))","v":""},null,null,null,{"$f":"IF(ISNA(VLOOKUP(T8,адреса!$E$3:$H$28,3,0)),\"\",VLOOKUP(T8,адреса!$E$3:$H$28,3,0))","v":""}]
[null,null," логист","Ленивец",{"$f":"IF(ISNA(VLOOKUP(D9,адреса!$E$3:$H$28,3,0)),\"\",VLOOKUP(D9,адреса!$E$3:$H$28,3,0))","v":"Ленина 2а"},null,null,null,{"$f":"IF(ISNA(VLOOKUP(H9,адреса!$E$3:$H$28,3,0)),\"\",VLOOKUP(H9,адреса!$E$3:$H$28,3,0))","v":""},null,null,null,{"$f":"IF(ISNA(VLOOKUP(L9,адреса!$E$3:$H$28,3,0)),\"\",VLOOKUP(L9,адреса!$E$3:$H$28,3,0))","v":""},null,null,null,{"$f":"IF(ISNA(VLOOKUP(P9,адреса!$E$3:$H$28,3,0)),\"\",VLOOKUP(P9,адреса!$E$3:$H$28,3,0))","v":""},null,null,null,{"$f":"IF(ISNA(VLOOKUP(T9,адреса!$E$3:$H$28,3,0)),\"\",VLOOKUP(T9,адреса!$E$3:$H$28,3,0))","v":""}]
[null,null," логист","Левкоя",{"$f":"IF(ISNA(VLOOKUP(D10,адреса!$E$3:$H$28,3,0)),\"\",VLOOKUP(D10,адреса!$E$3:$H$28,3,0))","v":"Ленина 2а"},null,"Борисов Б.Б.",null,{"$f":"IF(ISNA(VLOOKUP(H10,адреса!$E$3:$H$28,3,0)),\"\",VLOOKUP(H10,адреса!$E$3:$H$28,3,0))","v":""},null,null,null,{"$f":"IF(ISNA(VLOOKUP(L10,адреса!$E$3:$H$28,3,0)),\"\",VLOOKUP(L10,адреса!$E$3:$H$28,3,0))","v":""},null,null,null,{"$f":"IF(ISNA(VLOOKUP(P10,адреса!$E$3:$H$28,3,0)),\"\",VLOOKUP(P10,адреса!$E$3:$H$28,3,0))","v":""},null,null,null,{"$f":"IF(ISNA(VLOOKUP(T10,адреса!$E$3:$H$28,3,0)),\"\",VLOOKUP(T10,адреса!$E$3:$H$28,3,0))","v":""}]
[null,null,"Андреев А.А.","Альтера",{"$f":"IF(ISNA(VLOOKUP(D11,адреса!$E$3:$H$28,3,0)),\"\",VLOOKUP(D11,адреса!$E$3:$H$28,3,0))","v":""},null,"Васечкин В.В.",null,{"$f":"IF(ISNA(VLOOKUP(H11,адреса!$E$3:$H$28,3,0)),\"\",VLOOKUP(H11,адреса!$E$3:$H$28,3,0))","v":""},null,null,null,{"$f":"IF(ISNA(VLOOKUP(L11,адреса!$E$3:$H$28,3,0)),\"\",VLOOKUP(L11,адреса!$E$3:$H$28,3,0))","v":""},null,null,null,{"$f":"IF(ISNA(VLOOKUP(P11,адреса!$E$3:$H$28,3,0)),\"\",VLOOKUP(P11,адреса!$E$3:$H$28,3,0))","v":""},null,null,null,{"$f":"IF(ISNA(VLOOKUP(T11,адреса!$E$3:$H$28,3,0)),\"\",VLOOKUP(T11,адреса!$E$3:$H$28,3,0))","v":""}]
[null,null,"Андреев А.А.","Алики",{"$f":"IF(ISNA(VLOOKUP(D12,адреса!$E$3:$H$28,3,0)),\"\",VLOOKUP(D12,адреса!$E$3:$H$28,3,0))","v":"Академический 2/2 ст.5"},null,"Дмитрюк Д.Д.",null,{"$f":"IF(ISNA(VLOOKUP(H12,адреса!$E$3:$H$28,3,0)),\"\",VLOOKUP(H12,адреса!$E$3:$H$28,3,0))","v":""},null,null,null,{"$f":"IF(ISNA(VLOOKUP(L12,адреса!$E$3:$H$28,3,0)),\"\",VLOOKUP(L12,адреса!$E$3:$H$28,3,0))","v":""},null,null,null,{"$f":"IF(ISNA(VLOOKUP(P12,адреса!$E$3:$H$28,3,0)),\"\",VLOOKUP(P12,адреса!$E$3:$H$28,3,0))","v":""},null,null,null,{"$f":"IF(ISNA(VLOOKUP(T12,адреса!$E$3:$H$28,3,0)),\"\",VLOOKUP(T12,адреса!$E$3:$H$28,3,0))","v":""}]
[null,null,null,null,{"$f":"IF(ISNA(VLOOKUP(D13,адреса!$E$3:$H$28,3,0)),\"\",VLOOKUP(D13,адреса!$E$3:$H$28,3,0))","v":""},null,"Дмитрюк Д.Д.",null,{"$f":"IF(ISNA(VLOOKUP(H13,адреса!$E$3:$H$28,3,0)),\"\",VLOOKUP(H13,адреса!$E$3:$H$28,3,0))","v":""},null,null,null,{"$f":"IF(ISNA(VLOOKUP(L13,адреса!$E$3:$H$28,3,0)),\"\",VLOOKUP(L13,адреса!$E$3:$H$28,3,0))","v":""},null,null,null,{"$f":"IF(ISNA(VLOOKUP(P13,адреса!$E$3:$H$28,3,0)),\"\",VLOOKUP(P13,адреса!$E$3:$H$28,3,0))","v":""},null,null,null,{"$f":"IF(ISNA(VLOOKUP(T13,адреса!$E$3:$H$28,3,0)),\"\",VLOOKUP(T13,адреса!$E$3:$H$28,3,0))","v":""}]
[null,null,null,null,{"$f":"IF(ISNA(VLOOKUP(D14,адреса!$E$3:$H$28,3,0)),\"\",VLOOKUP(D14,адреса!$E$3:$H$28,3,0))","v":""},null,null,null,{"$f":"IF(ISNA(VLOOKUP(H14,адреса!$E$3:$H$28,3,0)),\"\",VLOOKUP(H14,адреса!$E$3:$H$28,3,0))","v":""},null,null,null,{"$f":"IF(ISNA(VLOOKUP(L14,адреса!$E$3:$H$28,3,0)),\"\",VLOOKUP(L14,адреса!$E$3:$H$28,3,0))","v":""},null,null,null,{"$f":"IF(ISNA(VLOOKUP(P14,адреса!$E$3:$H$28,3,0)),\"\",VLOOKUP(P14,адреса!$E$3:$H$28,3,0))","v":""},null,null,null,{"$f":"IF(ISNA(VLOOKUP(T14,адреса!$E$3:$H$28,3,0)),\"\",VLOOKUP(T14,адреса!$E$3:$H$28,3,0))","v":""}]
[null,null,null,null,{"$f":"IF(ISNA(VLOOKUP(D15,адреса!$E$3:$H$28,3,0)),\"\",VLOOKUP(D15,адреса!$E$3:$H$28,3,0))","v":""},null,null,null,{"$f":"IF(ISNA(VLOOKUP(H15,адреса!$E$3:$H$28,3,0)),\"\",VLOOKUP(H15,адреса!$E$3:$H$28,3,0))","v":""},null,null,null,{"$f":"IF(ISNA(VLOOKUP(L15,адреса!$E$3:$H$28,3,0)),\"\",VLOOKUP(L15,адреса!$E$3:$H$28,3,0))","v":""},null,null,null,{"$f":"IF(ISNA(VLOOKUP(P15,адреса!$E$3:$H$28,3,0)),\"\",VLOOKUP(P15,адреса!$E$3:$H$28,3,0))","v":""},null,null,null,{"$f":"IF(ISNA(VLOOKUP(T15,адреса!$E$3:$H$28,3,0)),\"\",VLOOKUP(T15,адреса!$E$3:$H$28,3,0))","v":""}]
[null,null,null,null,{"$f":"IF(ISNA(VLOOKUP(D16,адреса!$E$3:$H$28,3,0)),\"\",VLOOKUP(D16,адреса!$E$3:$H$28,3,0))","v":""},null,null,null,{"$f":"IF(ISNA(VLOOKUP(H16,адреса!$E$3:$H$28,3,0)),\"\",VLOOKUP(H16,адреса!$E$3:$H$28,3,0))","v":""},null,null,null,{"$f":"IF(ISNA(VLOOKUP(L16,адреса!$E$3:$H$28,3,0)),\"\",VLOOKUP(L16,адреса!$E$3:$H$28,3,0))","v":""},null,null,null,{"$f":"IF(ISNA(VLOOKUP(P16,адреса!$E$3:$H$28,3,0)),\"\",VLOOKUP(P16,адреса!$E$3:$H$28,3,0))","v":""},null,null,null,{"$f":"IF(ISNA(VLOOKUP(T16,адреса!$E$3:$H$28,3,0)),\"\",VLOOKUP(T16,адреса!$E$3:$H$28,3,0))","v":""}]
[null,null,null,null,{"$f":"IF(ISNA(VLOOKUP(D17,адреса!$E$3:$H$28,3,0)),\"\",VLOOKUP(D17,адреса!$E$3:$H$28,3,0))","v":""},null,null,null,{"$f":"IF(ISNA(VLOOKUP(H17,адреса!$E$3:$H$28,3,0)),\"\",VLOOKUP(H17,адреса!$E$3:$H$28,3,0))","v":""},null,null,null,{"$f":"IF(ISNA(VLOOKUP(L17,адреса!$E$3:$H$28,3,0)),\"\",VLOOKUP(L17,адреса!$E$3:$H$28,3,0))","v":""},null,null,null,{"$f":"IF(ISNA(VLOOKUP(P17,адреса!$E$3:$H$28,3,0)),\"\",VLOOKUP(P17,адреса!$E$3:$H$28,3,0))","v":""},null,null,null,{"$f":"IF(ISNA(VLOOKUP(T17,адреса!$E$3:$H$28,3,0)),\"\",VLOOKUP(T17,адреса!$E$3:$H$28,3,0))","v":""}]
[null,null,null,null,{"$f":"IF(ISNA(VLOOKUP(D18,адреса!$E$3:$H$28,3,0)),\"\",VLOOKUP(D18,адреса!$E$3:$H$28,3,0))","v":""},null,null,null,{"$f":"IF(ISNA(VLOOKUP(H18,адреса!$E$3:$H$28,3,0)),\"\",VLOOKUP(H18,адреса!$E$3:$H$28,3,0))","v":""},null,null,null,{"$f":"IF(ISNA(VLOOKUP(L18,адреса!$E$3:$H$28,3,0)),\"\",VLOOKUP(L18,адреса!$E$3:$H$28,3,0))","v":""},null,null,null,{"$f":"IF(ISNA(VLOOKUP(P18,адреса!$E$3:$H$28,3,0)),\"\",VLOOKUP(P18,адреса!$E$3:$H$28,3,0))","v":""},null,null,null,{"$f":"IF(ISNA(VLOOKUP(T18,адреса!$E$3:$H$28,3,0)),\"\",VLOOKUP(T18,адреса!$E$3:$H$28,3,0))","v":""}]
[null,null,null,null,{"$f":"IF(ISNA(VLOOKUP(D19,адреса!$E$3:$H$28,3,0)),\"\",VLOOKUP(D19,адреса!$E$3:$H$28,3,0))","v":""},null,null,null,{"$f":"IF(ISNA(VLOOKUP(H19,адреса!$E$3:$H$28,3,0)),\"\",VLOOKUP(H19,адреса!$E$3:$H$28,3,0))","v":""},null,null,null,{"$f":"IF(ISNA(VLOOKUP(L19,адреса!$E$3:$H$28,3,0)),\"\",VLOOKUP(L19,адреса!$E$3:$H$28,3,0))","v":""},null,null,null,{"$f":"IF(ISNA(VLOOKUP(P19,адреса!$E$3:$H$28,3,0)),\"\",VLOOKUP(P19,адреса!$E$3:$H$28,3,0))","v":""},null,null,null,{"$f":"IF(ISNA(VLOOKUP(T19,адреса!$E$3:$H$28,3,0)),\"\",VLOOKUP(T19,адреса!$E$3:$H$28,3,0))","v":""}]
[null,null,null,null,{"$f":"IF(ISNA(VLOOKUP(D20,адреса!$E$3:$H$28,3,0)),\"\",VLOOKUP(D20,адреса!$E$3:$H$28,3,0))","v":""},null,null,null,{"$f":"IF(ISNA(VLOOKUP(H20,адреса!$E$3:$H$28,3,0)),\"\",VLOOKUP(H20,адреса!$E$3:$H$28,3,0))","v":""},null,null,null,{"$f":"IF(ISNA(VLOOKUP(L20,адреса!$E$3:$H$28,3,0)),\"\",VLOOKUP(L20,адреса!$E$3:$H$28,3,0))","v":""},null,null,null,{"$f":"IF(ISNA(VLOOKUP(P20,адреса!$E$3:$H$28,3,0)),\"\",VLOOKUP(P20,адреса!$E$3:$H$28,3,0))","v":""},null,null,null,{"$f":"IF(ISNA(VLOOKUP(T20,адреса!$E$3:$H$28,3,0)),\"\",VLOOKUP(T20,адреса!$E$3:$H$28,3,0))","v":""}]

{"sheet":"адреса","index":2,"n_rows":29,"n_cols":8,"rows_kept":29,"cut":false,"hidden":false,"merged":[]}
[null,"ФИО",null,"менеджер","Фирма","Ранг","Адрес"," примечание"]
[null," логист"]
[null,"Андреев А.А.",null," логист","Левкоя",4,"Ленина 2а","корпус 17, оф.33. Въезд через железные ворота слева от 10 корп. Третий поворот направо (второй поворот за вторыми железными воротами)"]
[null,"Борисов Б.Б.",null," логист","Липа, бук и дуб",5,"Ленина 2а","корпус 17, оф.33. Въезд через железные ворота слева от 10 корп. Третий поворот направо (второй поворот за вторыми железными воротами)"]
[null,"Васечкин В.В.",null," логист","Лук и стрелы",6,"Ленина 2а","корпус 17, оф.33. Въезд через железные ворота слева от 10 корп. Третий поворот направо (второй поворот за вторыми железными воротами)"]
[null,"Гришин Г.Г.",null," логист","Лоза",7,"Ленина 2а","корпус 17, оф.33. Въезд через железные ворота слева от 10 корп. Третий поворот направо (второй поворот за вторыми железными воротами)"]
[null,"Дмитрюк Д.Д.",null," логист","Ленивец",8,"Ленина 2а","корпус 17, оф.33. Въезд через железные ворота слева от 10 корп. Третий поворот направо (второй поворот за вторыми железными воротами)"]
[null,null,null," логист","Ласковый июнь",9,"Ленина 2а","корпус 17, оф.33. Въезд через железные ворота слева от 10 корп. Третий поворот направо (второй поворот за вторыми железными воротами)"]
[null,null,null,"Борисов Б.Б.","Булки",10,"Бирюлево","корпус 17, оф.33. Въезд через железные ворота слева от 10 корп. Третий поворот направо (второй поворот за вторыми железными воротами)"]
[null,null,null,"Дмитрюк Д.Д.","Доски",2,"Давыдова 3"]
[null,null,null,"Дмитрюк Д.Д.","Драги",1,"Академический 2/2 ст.5"]
[null,null,null,"Дмитрюк Д.Д.","Диски",6,"Академический 2/2 ст.5","49-11-32 12:00-13:00 обед, работает до 17:00"]
[null,null,null,"Дмитрюк Д.Д.","Думки",3,"Давыдова 3","Проходная Манотоми"]
[null,null,null,"Васечкин В.В.","Веники",5,"Савиных № 7"]
[null,null,null,"Андреев А.А.","Аськи",6,"Академический 2/2 ст.5"]
[null,null,null,"Андреев А.А.","Алики",7,"Академический 2/2 ст.5"]
[null,null,null," логист","Вилки",8,"Вершинина 25/2"]
[null,null,null,"Васечкин В.В.","Волки и медведь",9,"Вершинина 25/2"]
[null,null,null,"Борисов Б.Б.","Бирки",10,"Бирюлево"]
[null,null,null,"Борисов Б.Б.","Брюки",11,"Бирюлево"]
[null,null,null,"Борисов Б.Б.","Бюстгалтер",12,"Бирюлево"]
[null,null,null,"Васечкин В.В.","ВИКТОРИ",13,"Вершинина 25/2"]
[null,null,null,"Васечкин В.В.","ваниль",14,"Вершинина 25/2"]
[null,null,null,"Гришин Г.Г.","Груши",15,"Савиных № 17"]
[null,null,null,"Гришин Г.Г.","Гуталин",16,"Савиных № 18"]
[null,null,null,"Гришин Г.Г.","Гиблое дело",17,"Савиных № 19"]
[null,null,null,"Гришин Г.Г.","Громов и Ко",18,"Савиных № 20"]
[null,null,null,"Андреев А.А.","Альтаир",19,"Академический 2/2 ст.5"]
[null,null,null,"Андреев А.А.","Август",20,"Академический 2/2 ст.5"]